fUST/lending_fUST_20250920
["ID","MTS","AMOUNT","RATE_DAILY","PERIOD"]
[386549582,1758379842524,-607.37,0.00021113,2]
[386549583,1758379842534,-604.84,0.00021113,2]
[386549584,1758379842543,-356.6,0.00021113,2]
[386549585,1758379842553,-1428.79,0.00021113,2]
[386549586,1758379842563,-480.0,0.00021113,2]
[386549587,1758379842573,-480.0,0.00021113,2]
[386549588,1758379842582,-480.0,0.00021113,2]
[386549589,1758379842592,-480.0,0.00021113,2]
[386549590,1758379842601,-480.0,0.00021113,2]
[386549591,1758379842611,-480.0,0.00021113,2]
[386549592,1758379842620,-480.0,0.00021113,2]
[386549593,1758379842629,-1146.01,0.00021113,2]
[386549595,1758379842639,-1644.66,0.00021113,2]
[386549596,1758379842648,-480.0,0.00021113,2]
[386549597,1758379842657,-480.0,0.00021113,2]
[386549598,1758379842667,-480.0,0.00021113,2]
[386549599,1758379842676,-480.0,0.00021113,2]
[386549600,1758379842685,-480.0,0.00021113,2]
[386549602,1758379842694,-300.0,0.00021123,2]
[386549604,1758379842704,-1296.91,0.00021129,2]
[386549606,1758379842713,-464.0,0.0002113,2]
[386549607,1758379842723,-151.0,0.0002113,2]
[386549608,1758379842732,-151.0,0.0002113,2]
[386549609,1758379842742,-151.0,0.0002113,2]
[386549610,1758379842751,-151.0,0.0002113,2]
[386549611,1758379842761,-151.0,0.0002113,2]
[386549612,1758379842770,-151.877763,0.0002113,2]
[386549613,1758379842780,-151.0,0.0002113,2]
[386549614,1758379842789,-151.0,0.0002113,2]
[386549615,1758379842799,-151.0,0.0002113,2]
[386549616,1758379842808,-3124.62,0.0002113,2]
[386549617,1758379842818,-564.28,0.0002113,2]
[386549618,1758379842827,-1616.25,0.0002113,2]
[386549619,1758379842837,-480.0,0.0002113,2]
[386549622,1758379842847,-480.0,0.0002113,2]
[386549624,1758379842856,-480.0,0.0002113,2]
[386549626,1758379842865,-1236.34,0.0002113,2]
[386549627,1758379842875,-2647.79,0.0002113,2]
[386549628,1758379842884,-571.37248019,0.0002113,2]
[386549629,1758379842894,-28436.39745622,0.0002113,3]
[386549630,1758379842904,-417.15472785,0.0002113,3]
[386549631,1758379842914,-359.0,0.00021148,2]
[386549633,1758379842923,-378.0,0.00021155,2]
[386549635,1758379842932,-1342.06601207,0.00021158,2]
[386549637,1758379842941,-250.0,0.000212,10]
[386549638,1758379842951,-151.0,0.0002122,2]
[386549640,1758379842960,-151.0,0.0002122,2]
[386549641,1758379842969,-480.0,0.00021226,2]
[386549642,1758379842979,-6427.53,0.00021226,2]
[386549643,1758379842988,-994.14,0.00021226,2]
[386549644,1758379842997,-480.0,0.00021227,2]
[386549645,1758379843006,-480.0,0.00021228,2]
[386549646,1758379843016,-374.94,0.00021228,2]
[386549647,1758379843025,-480.0,0.00021228,2]
[386549648,1758379843035,-345.864956,0.00021228,2]
[386549649,1758379843044,-345.864956,0.00021228,2]
[386549650,1758379843054,-203.85,0.00021228,2]
[386549651,1758379843064,-345.864956,0.00021228,2]
[386549652,1758379843079,-203.85,0.00021228,2]
[386549653,1758379843089,-345.864956,0.00021228,2]
[386549654,1758379843099,-203.85,0.00021228,2]
[386549655,1758379843108,-203.85,0.00021228,2]
[386549656,1758379843118,-440.062557,0.00021228,2]
[386549657,1758379843127,-440.062557,0.00021228,2]
[386549658,1758379843137,-440.062557,0.00021228,2]
[386549659,1758379843147,-405.079385,0.00021228,2]
[386549660,1758379843156,-440.062557,0.00021228,2]
[386549661,1758379843168,-405.079385,0.00021228,2]
[386549662,1758379843178,-405.079385,0.00021228,2]
[386549663,1758379843187,-405.079385,0.00021228,2]
[386549664,1758379843196,-151.196147,0.00021228,2]
[386549665,1758379843206,-163.753531,0.00021228,2]
[386549666,1758379843216,-163.753531,0.00021228,2]
[386549667,1758379843225,-163.753531,0.00021228,2]
[386549668,1758379843235,-175.93205468,0.00021229,2]
[386549669,1758379843244,-480.0,0.00021229,2]
[386549670,1758379843253,-480.0,0.00021229,2]
[386549671,1758379843262,-480.0,0.00021229,2]
[386549672,1758379843272,-480.0,0.00021229,2]
[386549673,1758379843281,-722.927137,0.00021229,2]
[386549674,1758379843290,-722.927137,0.00021229,2]
[386549675,1758379843300,-722.927137,0.00021229,2]
[386549676,1758379843309,-722.927137,0.00021229,2]
[386549677,1758379843318,-815.886596,0.00021229,2]
[386549678,1758379843327,-815.886596,0.00021229,2]
[386549679,1758379843337,-815.886596,0.00021229,2]
[386549680,1758379843346,-815.886596,0.00021229,2]
[386549682,1758379843355,-157.586451,0.00021229,2]
[386549684,1758379843364,-157.586451,0.00021229,2]
[386549685,1758379843374,-157.586451,0.00021229,2]
[386549686,1758379843383,-151.0,0.00021229,2]
[386549687,1758379843393,-157.586451,0.00021229,2]
[386549688,1758379843403,-151.0,0.00021229,2]
[386549689,1758379843413,-151.0,0.00021229,2]
[386549690,1758379843422,-186.120638,0.00021229,2]
[386549691,1758379843432,-151.0,0.00021229,2]
[386549692,1758379843442,-151.0,0.00021229,2]
[386549693,1758379843451,-151.0,0.00021229,2]
[386549694,1758379843461,-151.0,0.00021229,2]
[386549696,1758379843471,-151.0,0.00021229,2]
[386549697,1758379843480,-151.0,0.00021229,2]
[386549698,1758379843489,-151.0,0.00021229,2]
[386549699,1758379843498,-151.0,0.00021229,2]
[386549700,1758379843507,-156.030069,0.00021229,2]
[386549701,1758379843516,-480.0,0.0002123,2]
[386549702,1758379843525,-560.4458538,0.0002123,2]
[386549703,1758379843617,-480.0,0.0002123,2]
[386549704,1758379843630,-480.0,0.0002123,2]
[386549705,1758379843639,-480.0,0.0002123,2]
[386549706,1758379843650,-373.92617075,0.0002123,2]
[386549707,1758379843660,-448.2277283,0.0002123,2]
[386549708,1758379843670,-480.0,0.0002123,2]
[386549709,1758379843679,-1079.11,0.0002123,2]
[386549711,1758379843689,-480.0,0.0002123,2]
[386549713,1758379843699,-480.0,0.0002123,2]
[386549715,1758379843708,-493.81,0.0002123,2]
[386549716,1758379843719,-480.0,0.0002123,2]
[386549717,1758379843729,-480.0,0.0002123,2]
[386549719,1758379843738,-480.0,0.0002123,2]
[386549721,1758379843747,-480.0,0.0002123,2]
[386549722,1758379843757,-669.06,0.0002123,2]
[386549723,1758379843766,-472.50669753,0.0002123,2]
[386549724,1758379843776,-480.0,0.0002123,2]
[386549725,1758379843785,-480.0,0.0002123,2]
[386549726,1758379843795,-480.0,0.0002123,2]
[386549727,1758379843805,-480.0,0.0002123,2]
[386549728,1758379843814,-385.06342864,0.0002123,2]
[386549729,1758379843824,-480.0,0.0002123,2]
[386549731,1758379843834,-480.0,0.0002123,2]
[386549733,1758379843843,-480.0,0.0002123,2]
[386549734,1758379843853,-1102.4,0.0002123,2]
[386549735,1758379843863,-480.0,0.0002123,2]
[386549736,1758379843874,-480.0,0.0002123,2]
[386549737,1758379843884,-151.0,0.0002123,2]
[386549738,1758379843893,-151.0,0.0002123,2]
[386549739,1758379843903,-151.0,0.0002123,2]
[386549740,1758379843915,-151.0,0.0002123,2]
[386549741,1758379843925,-151.0,0.0002123,2]
[386549742,1758379843937,-151.0,0.0002123,2]
[386549743,1758379843947,-151.0,0.0002123,2]
[386549744,1758379843959,-151.0,0.0002123,2]
[386549745,1758379843971,-151.0,0.0002123,2]
[386549746,1758379843982,-151.0,0.0002123,2]
[386549747,1758379843993,-151.0,0.0002123,2]
[386549748,1758379844004,-151.0,0.0002123,2]
[386549749,1758379844015,-184.269706,0.0002123,2]
[386549750,1758379844026,-299.278897,0.0002123,2]
[386549751,1758379844036,-151.0,0.0002123,2]
[386549752,1758379844048,-151.0,0.0002123,2]
[386549753,1758379844059,-184.269706,0.0002123,2]
[386549754,1758379844070,-151.0,0.0002123,2]
[386549755,1758379844080,-151.0,0.0002123,2]
[386549756,1758379844089,-151.0,0.0002123,2]
[386549757,1758379844099,-184.269706,0.0002123,2]
[386549758,1758379844109,-151.0,0.0002123,2]
[386549759,1758379844118,-151.0,0.0002123,2]
[386549760,1758379844127,-184.269706,0.0002123,2]
[386549761,1758379844137,-151.0,0.0002123,2]
[386549762,1758379844146,-151.0,0.0002123,2]
[386549763,1758379844155,-151.0,0.0002123,2]
[386549764,1758379844164,-498.8354366,0.0002123,2]
[386549765,1758379844173,-151.0,0.0002123,2]
[386549766,1758379844183,-151.0,0.0002123,2]
[386549767,1758379844192,-151.0,0.0002123,2]
[386549768,1758379844201,-269.062132,0.0002123,2]
[386549769,1758379844211,-165.56644,0.0002123,2]
[386549770,1758379844221,-269.062132,0.0002123,2]
[386549771,1758379844231,-269.062132,0.0002123,2]
[386549772,1758379844241,-151.0,0.0002123,2]
[386549773,1758379844251,-269.062132,0.0002123,2]
[386549774,1758379844261,-151.0,0.0002123,2]
[386549775,1758379844270,-213.83252,0.0002123,2]
[386549776,1758379844280,-691.707691,0.0002123,2]
[386549777,1758379844289,-151.0,0.0002123,2]
[386549778,1758379844299,-691.707691,0.0002123,2]
[386549779,1758379844309,-176.499067,0.0002123,2]
[386549780,1758379844318,-691.707691,0.0002123,2]
[386549781,1758379844328,-691.707691,0.0002123,2]
[386549782,1758379844337,-480.0,0.0002123,2]
[386549783,1758379844347,-151.0,0.0002123,2]
[386549784,1758379844356,-480.0,0.0002123,2]
[386549785,1758379844366,-480.0,0.0002123,2]
[386549786,1758379844375,-151.0,0.00021231,2]
[386549787,1758379844385,-151.0,0.00021231,2]
[386549788,1758379844394,-151.0,0.00021231,2]
[386549789,1758379844404,-151.0,0.00021231,2]
[386549790,1758379844413,-151.0,0.00021231,2]
[386549791,1758379844423,-250.461814,0.00021231,2]
[386549792,1758379844432,-151.0,0.00021231,2]
[386549793,1758379844442,-151.0,0.00021231,2]
[386549794,1758379844451,-373.60555352,0.00021231,2]
[386549795,1758379844462,-151.0,0.00021231,2]
[386549796,1758379844472,-151.0,0.00021231,2]
[386549797,1758379844481,-151.0,0.00021231,2]
[386549798,1758379844491,-151.0,0.00021231,2]
[386549799,1758379844500,-151.0,0.00021231,2]
[386549800,1758379844510,-151.875404,0.00021231,2]
[386549801,1758379844519,-151.0,0.00021231,2]
[386549802,1758379844529,-151.0,0.00021231,2]
[386549803,1758379844539,-151.0,0.00021231,2]
[386549804,1758379844548,-151.0,0.00021231,2]
[386549805,1758379844557,-151.0,0.00021231,2]
[386549806,1758379844567,-151.0,0.00021231,2]
[386549807,1758379844576,-151.0,0.00021231,2]
[386549808,1758379844586,-151.0,0.00021231,2]
[386549809,1758379844595,-371.357002,0.00021231,2]
[386549810,1758379844605,-371.357002,0.00021231,2]
[386549811,1758379844614,-371.357002,0.00021231,2]
[386549812,1758379844624,-371.357002,0.00021231,2]
[386549813,1758379844633,-151.0,0.00021231,2]
[386549814,1758379844643,-190.635723,0.00021231,2]
[386549815,1758379844652,-151.0,0.00021231,2]
[386549816,1758379844662,-151.0,0.00021231,2]
[386549817,1758379844672,-151.0,0.00021231,2]
[386549818,1758379844682,-151.0,0.00021231,2]
[386549819,1758379844691,-358.131616,0.00021231,2]
[386549820,1758379844702,-358.131616,0.00021231,2]
[386549821,1758379844712,-358.131616,0.00021231,2]
[386549822,1758379844723,-358.131616,0.00021231,2]
[386549823,1758379844733,-151.0,0.00021231,2]
[386549824,1758379844743,-151.0,0.00021231,2]
[386549825,1758379844753,-151.0,0.00021231,2]
[386549826,1758379844762,-151.0,0.00021231,2]
[386549827,1758379844772,-151.0,0.00021231,2]
[386549828,1758379844782,-151.0,0.00021231,2]
[386549829,1758379844792,-217.65564,0.00021231,2]
[386549830,1758379844802,-151.0,0.00021231,2]
[386549831,1758379844811,-151.0,0.00021231,2]
[386549832,1758379844822,-217.65564,0.00021231,2]
[386549833,1758379844832,-305.071066,0.00021231,2]
[386549834,1758379844842,-217.65564,0.00021231,2]
[386549835,1758379844852,-305.071066,0.00021231,2]
[386549836,1758379844863,-305.071066,0.00021231,2]
[386549837,1758379844873,-305.071066,0.00021231,2]
[386549838,1758379844883,-217.65564,0.00021231,2]
[386549839,1758379844893,-1900.29,0.00021231,2]
[386549840,1758379844903,-151.0,0.00021231,2]
[386549841,1758379844912,-151.0,0.00021231,2]
[386549842,1758379844923,-151.0,0.00021231,2]
[386549843,1758379844933,-151.0,0.00021231,2]
[386549844,1758379844943,-151.0,0.00021231,2]
[386549845,1758379844952,-151.0,0.00021231,2]
[386549846,1758379844962,-151.0,0.00021231,2]
[386549847,1758379844972,-151.0,0.00021231,2]
[386549848,1758379844982,-160.077047,0.00021231,2]
[386549849,1758379844992,-151.0,0.00021231,2]
[386549850,1758379845001,-151.0,0.00021231,2]
[386549851,1758379845011,-151.0,0.00021231,2]
[386549852,1758379845021,-480.0,0.00021231,2]
[386549853,1758379845030,-12942.97,0.00021231,2]
[386549854,1758379845040,-666.61,0.00021231,2]
[386549855,1758379845051,-546.89417717,0.00021273,2]
[386549856,1758379845060,-500.0,0.00021273,2]
[386549857,1758379845071,-500.0,0.00021273,2]
[386549858,1758379845082,-500.0,0.00021273,2]
[386549859,1758379845094,-500.0,0.00021273,2]
[386549860,1758379845104,-500.0,0.00021273,2]
[386549861,1758379845116,-300.0,0.00021273,2]
[386549862,1758379845125,-500.0,0.00021273,2]
[386549863,1758379845135,-500.0,0.00021273,2]
[386549864,1758379845147,-500.0,0.00021273,2]
[386549865,1758379845156,-500.0,0.00021273,2]
[386549866,1758379845166,-471.31682989,0.00021273,2]
[386549867,1758379845175,-151.0,0.00021273,2]
[386549868,1758379845185,-151.0,0.00021273,2]
[386549869,1758379845195,-151.0,0.00021273,2]
[386549870,1758379845205,-151.0,0.00021273,2]
[386549871,1758379845216,-151.0,0.00021273,2]
[386549872,1758379845225,-151.0,0.00021273,2]
[386549873,1758379845236,-151.0,0.00021273,2]
[386549874,1758379845245,-733.0,0.00021282,2]
[386549875,1758379845256,-168.0,0.00021293,2]
[386549876,1758379845266,-1888.02,0.00021295,2]
[386549877,1758379845275,-480.0,0.00021295,2]
[386549878,1758379845285,-1370.13,0.00021295,2]
[386549879,1758379845295,-1581.65,0.00021295,2]
[386549880,1758379845305,-480.0,0.00021295,2]
[386549881,1758379845314,-500.68,0.00021295,2]
[386549882,1758379845323,-318.94230659,0.00021295,2]
[386549883,1758379845333,-2027.77,0.00021295,2]
[386549884,1758379845342,-644.34,0.00021295,2]
[386549885,1758379845351,-455.55,0.00021295,2]
[386549886,1758379845361,-706.95,0.00021295,2]
[386549887,1758379845370,-897.92,0.00021295,2]
[386549888,1758379845380,-3012.18,0.00021295,2]
[386549889,1758379845390,-250.0,0.000213,10]
[386549890,1758379845483,-382.53376909,0.00021314,2]
[386549891,1758379845493,-480.0,0.00021331,2]
[386549892,1758379845503,-480.0,0.00021331,2]
[386549893,1758379845512,-629.92,0.00021331,2]
[386549894,1758379845522,-1518.64,0.00021331,2]
[386549895,1758379845532,-431.0,0.00021364,2]
[386549896,1758379845542,-229.02,0.00021386,2]
[386549897,1758379845552,-480.0,0.00021386,2]
[386549898,1758379845562,-225.98165374,0.00021387,2]
[386549899,1758379845572,-480.0,0.00021387,2]
[386549900,1758379845582,-509.33,0.00021387,2]
[386549901,1758379845592,-480.0,0.00021387,2]
[386549902,1758379845602,-480.0,0.00021387,2]
[386549903,1758379845611,-480.0,0.00021387,2]
[386549904,1758379845621,-638.05,0.00021387,2]
[386549905,1758379845631,-495.43,0.00021387,2]
[386549907,1758379845640,-915.1,0.00021387,2]
[386549908,1758379845650,-480.0,0.00021387,2]
[386549910,1758379845660,-480.0,0.00021387,2]
[386549912,1758379845670,-339.16165306,0.00021387,2]
[386549914,1758379845680,-480.0,0.00021387,2]
[386549916,1758379845690,-480.0,0.00021387,2]
[386549918,1758379845700,-480.0,0.00021387,2]
[386549920,1758379845709,-480.0,0.00021387,2]
[386549923,1758379845723,-622.95,0.00021387,2]
[386549926,1758379845732,-607.37,0.00021387,2]
[386549929,1758379845742,-604.84,0.00021387,2]
[386549932,1758379845751,-1428.79,0.00021387,2]
[386549934,1758379845761,-263.99,0.00021387,2]
[386549936,1758379845770,-480.0,0.00021387,2]
[386549938,1758379845779,-480.0,0.00021387,2]
[386549940,1758379845789,-480.0,0.00021387,2]
[386549941,1758379845799,-480.0,0.00021387,2]
[386549943,1758379845808,-480.0,0.00021387,2]
[386549945,1758379845818,-480.0,0.00021387,2]
[386549947,1758379845827,-1146.01,0.00021387,2]
[386549949,1758379845837,-345.864956,0.00021387,2]
[386549951,1758379845847,-345.864956,0.00021387,2]
[386549953,1758379845856,-203.85,0.00021387,2]
[386549956,1758379845866,-345.864956,0.00021387,2]
[386549959,1758379845876,-203.85,0.00021387,2]
[386549962,1758379845886,-1644.66,0.00021387,2]
[386549963,1758379845895,-345.864956,0.00021387,2]
[386549964,1758379845905,-203.85,0.00021387,2]
[386549966,1758379845914,-203.85,0.00021387,2]
[386549968,1758379845924,-440.062557,0.00021387,2]
[386549970,1758379845934,-440.062557,0.00021387,2]
[386549972,1758379845943,-440.062557,0.00021387,2]
[386549973,1758379845952,-405.079385,0.00021387,2]
[386549975,1758379845963,-440.062557,0.00021387,2]
[386549977,1758379845972,-405.079385,0.00021387,2]
[386549979,1758379845982,-405.079385,0.00021387,2]
[386549981,1758379845992,-405.079385,0.00021387,2]
[386549983,1758379846001,-480.0,0.00021387,2]
[386549985,1758379846010,-480.0,0.00021387,2]
[386549987,1758379846020,-163.753531,0.00021387,2]
[386549989,1758379846030,-163.753531,0.00021387,2]
[386549991,1758379846040,-163.753531,0.00021387,2]
[386549993,1758379846050,-168.0,0.00021389,2]
[386549996,1758379846060,-168.0,0.00021395,2]
[386549999,1758379846069,-250.0,0.000214,10]
[386550002,1758379846081,-1296.91,0.00021403,2]
[386550005,1758379846091,-464.0,0.00021404,2]
[386550008,1758379846100,-3124.62,0.00021404,2]
[386550010,1758379846109,-564.28,0.00021404,2]
[386550012,1758379846119,-1616.25,0.00021404,2]
[386550014,1758379846128,-722.927137,0.00021404,2]
[386550016,1758379846137,-722.927137,0.00021404,2]
[386550018,1758379846148,-722.927137,0.00021404,2]
[386550020,1758379846158,-722.927137,0.00021404,2]
[386550022,1758379846167,-815.886596,0.00021404,2]
[386550023,1758379846176,-480.0,0.00021404,2]
[386550026,1758379846185,-815.886596,0.00021404,2]
[386550028,1758379846195,-815.886596,0.00021404,2]
[386550029,1758379846204,-815.886596,0.00021404,2]
[386550031,1758379846215,-157.586451,0.00021404,2]
[386550033,1758379846224,-480.0,0.00021404,2]
[386550035,1758379846233,-157.586451,0.00021404,2]
[386550037,1758379846243,-157.586451,0.00021404,2]
[386550039,1758379846252,-157.586451,0.00021404,2]
[386550042,1758379846262,-151.0,0.00021404,2]
[386550043,1758379846272,-151.0,0.00021404,2]
[386550045,1758379846281,-151.0,0.00021404,2]
[386550047,1758379846291,-151.0,0.00021404,2]
[386550048,1758379846301,-480.0,0.00021404,2]
[386550049,1758379846310,-151.0,0.00021404,2]
[386550050,1758379846320,-151.0,0.00021404,2]
[386550051,1758379846329,-151.0,0.00021404,2]
[386550052,1758379846338,-151.0,0.00021404,2]
[386550053,1758379846347,-151.0,0.00021404,2]
[386550054,1758379846357,-290.229743,0.00021404,2]
[386550055,1758379846366,-1236.34,0.00021404,2]
[386550056,1758379846376,-151.0,0.00021404,2]
[386550057,1758379846385,-2647.79,0.00021404,2]
[386550058,1758379846394,-179.73040439,0.00021414,2]
[386550059,1758379846403,-1342.06601207,0.00021423,2]
[386550060,1758379846412,-5000.0,0.00021431,2]
[386550061,1758379846421,-151.0,0.00021431,2]
[386550062,1758379846430,-151.0,0.00021431,2]
[386550063,1758379846439,-151.0,0.00021431,2]
[386550064,1758379846449,-151.0,0.00021431,2]
[386550065,1758379846458,-151.0,0.00021431,2]
[386550066,1758379846469,-151.0,0.00021431,2]
[386550067,1758379846478,-151.0,0.00021431,2]
[386550068,1758379846487,-269.062132,0.00021431,2]
[386550069,1758379846496,-269.062132,0.00021431,2]
[386550070,1758379846504,-269.062132,0.00021431,2]
[386550071,1758379846515,-151.0,0.00021431,2]
[386550072,1758379846524,-269.062132,0.00021431,2]
[386550073,1758379846533,-151.0,0.00021431,2]
[386550075,1758379846542,-691.707691,0.00021431,2]
[386550076,1758379846551,-151.0,0.00021431,2]
[386550077,1758379846561,-691.707691,0.00021431,2]
[386550078,1758379846570,-691.707691,0.00021431,2]
[386550079,1758379846579,-691.707691,0.00021431,2]
[386550080,1758379846589,-151.0,0.00021431,2]
[386550081,1758379846598,-168.0,0.00021431,2]
[386550082,1758379846607,-500.0,0.00021474,2]
[386550083,1758379846617,-5000.0,0.00021488,2]
[386550084,1758379846626,-151.0,0.00021488,2]
[386550085,1758379846635,-151.0,0.00021488,2]
[386550086,1758379846645,-151.0,0.00021488,2]
[386550087,1758379846654,-151.0,0.00021488,2]
[386550088,1758379846663,-151.0,0.00021488,2]
[386550089,1758379846673,-151.0,0.00021488,2]
[386550090,1758379846682,-151.0,0.00021488,2]
[386550091,1758379846692,-151.0,0.00021488,2]
[386550092,1758379846701,-151.0,0.00021488,2]
[386550093,1758379846710,-153.091473,0.00021488,2]
[386550094,1758379846722,-151.0,0.00021488,2]
[386550095,1758379846731,-264.561676,0.00021488,2]
[386550096,1758379846741,-184.269706,0.00021488,2]
[386550097,1758379846750,-151.0,0.00021488,2]
[386550098,1758379846760,-184.269706,0.00021488,2]
[386550099,1758379846770,-151.0,0.00021488,2]
[386550100,1758379846779,-184.269706,0.00021488,2]
[386550101,1758379846789,-151.0,0.00021488,2]
[386550102,1758379846799,-184.269706,0.00021488,2]
[386550103,1758379846808,-151.0,0.00021488,2]
[386550104,1758379846817,-151.0,0.00021488,2]
[386550105,1758379846827,-242.720414,0.00021488,2]
[386550106,1758379846836,-205.9068616,0.00021494,2]
[386550107,1758379846845,-151.0,0.00021494,2]
[386550108,1758379846855,-480.0,0.000215,2]
[386550109,1758379846864,-304.02283389,0.000215,2]
[386550110,1758379846875,-250.0,0.000215,10]
[386550111,1758379846884,-6427.53,0.000215,2]
[386550112,1758379846894,-994.14,0.000215,2]
[386550113,1758379846904,-151.0,0.00021501,2]
[386550114,1758379846913,-151.0,0.00021501,2]
[386550115,1758379846923,-151.0,0.00021501,2]
[386550116,1758379846932,-175.147881,0.00021501,2]
[386550117,1758379846941,-151.0,0.00021501,2]
[386550118,1758379846950,-217.65564,0.00021501,2]
[386550119,1758379846960,-151.0,0.00021501,2]
[386550120,1758379846971,-217.65564,0.00021501,2]
[386550121,1758379846980,-151.0,0.00021501,2]
[386550122,1758379846990,-305.071066,0.00021501,2]
[386550123,1758379846999,-305.071066,0.00021501,2]
[386550124,1758379847008,-305.071066,0.00021501,2]
[386550125,1758379847018,-305.071066,0.00021501,2]
[386550126,1758379847028,-217.65564,0.00021501,2]
[386550127,1758379847037,-217.65564,0.00021501,2]
[386550128,1758379847046,-151.0,0.00021501,2]
[386550129,1758379847056,-151.0,0.00021501,2]
[386550130,1758379847139,-151.0,0.00021501,2]
[386550131,1758379847148,-151.0,0.00021501,2]
[386550132,1758379847158,-151.0,0.00021501,2]
[386550133,1758379847167,-151.0,0.00021501,2]
[386550134,1758379847176,-151.0,0.00021501,2]
[386550135,1758379847185,-151.0,0.00021501,2]
[386550136,1758379847194,-151.0,0.00021501,2]
[386550137,1758379847203,-151.0,0.00021501,2]
[386550138,1758379847215,-151.0,0.00021501,2]
[386550139,1758379847224,-594.7,0.00021501,2]
[386550140,1758379847234,-480.0,0.00021502,2]
[386550141,1758379847243,-480.0,0.00021502,2]
[386550142,1758379847254,-151.437878,0.00021503,2]
[386550143,1758379847263,-151.0,0.00021503,2]
[386550144,1758379847272,-151.581267,0.00021503,2]
[386550145,1758379847282,-151.0,0.00021503,2]
[386550146,1758379847292,-151.0,0.00021503,2]
[386550147,1758379847302,-151.0,0.00021503,2]
[386550148,1758379847312,-151.875019,0.00021503,2]
[386550149,1758379847321,-151.0,0.00021503,2]
[386550150,1758379847330,-152.356305,0.00021503,2]
[386550151,1758379847339,-151.0,0.00021503,2]
[386550152,1758379847348,-151.0,0.00021503,2]
[386550153,1758379847358,-151.0,0.00021503,2]
[386550154,1758379847367,-151.0,0.00021503,2]
[386550155,1758379847376,-151.0,0.00021503,2]
[386550156,1758379847385,-151.0,0.00021503,2]
[386550157,1758379847395,-278.345181,0.00021503,2]
[386550158,1758379847404,-151.0,0.00021503,2]
[386550159,1758379847414,-151.0,0.00021503,2]
[386550160,1758379847423,-151.0,0.00021503,2]
[386550161,1758379847432,-151.0,0.00021503,2]
[386550162,1758379847441,-371.357002,0.00021503,2]
[386550163,1758379847450,-371.357002,0.00021503,2]
[386550164,1758379847460,-371.357002,0.00021503,2]
[386550165,1758379847471,-371.357002,0.00021503,2]
[386550166,1758379847480,-151.0,0.00021503,2]
[386550167,1758379847490,-151.0,0.00021503,2]
[386550168,1758379847499,-151.0,0.00021503,2]
[386550169,1758379847507,-151.0,0.00021503,2]
[386550170,1758379847516,-151.0,0.00021503,2]
[386550171,1758379847526,-358.131616,0.00021503,2]
[386550172,1758379847535,-358.131616,0.00021503,2]
[386550173,1758379847544,-358.131616,0.00021503,2]
[386550174,1758379847554,-399.24089421,0.00021503,2]
[386550175,1758379847564,-358.131616,0.00021503,2]
[386550176,1758379847573,-480.0,0.00021503,2]
[386550177,1758379847583,-480.0,0.00021503,2]
[386550178,1758379847593,-603.24,0.00021504,2]